{"text_format":"3","workbook":"xlsx","n_sheets":1,"sheets":["Préstamo de libros"],"not_rendered":{"defined_names":4},"read":"whole","date_system":"1900"}

{"sheet":"Préstamo de libros","index":0,"n_rows":9,"n_cols":8,"rows_kept":9,"merged":[[0,1,0,4],[0,5,0,6]]}
[null,"Registro de préstamos de libros de la biblioteca",{"$nulls":3},"DÍAS HASTA EL VENCIMIENTO: ",null,10]
["Vencido","ESTUDIANTE","CORREO ELECTRÓNICO DE CONTACTO","TELÉFONO DE CONTACTO","TÍTULO DEL LIBRO","FECHA DEL PRÉSTAMO","FECHA DE LA DEVOLUCIÓN","DÍAS"]
[{"$f":"IFERROR(((Libros[[#This Row],[FECHA DEL PRÉSTAMO]]+LímiteDías)<TODAY())*(LEN(Libros[[#This Row],[FECHA DE LA DEVOLUCIÓN]])=0)*(LEN(Libros[[#This Row],[FECHA DEL PRÉSTAMO]])>0),0)","v":0},"María Zelaya","alguien@ejemplo.com","555-0100","La casa de la pradera",{"$f":"DATE(YEAR(TODAY()),1,14)","v":"2018-01-14"},{"$f":"DATE(YEAR(TODAY()),1,21)","v":"2018-01-21"},{"$f":"IFERROR(IF(Libros[[#This Row],[FECHA DE LA DEVOLUCIÓN]]=\"\",IF(Libros[[#This Row],[FECHA DEL PRÉSTAMO]]<>\"\", TODAY()-Libros[[#This Row],[FECHA DEL PRÉSTAMO]],\"\"),Libros[[#This Row],[FECHA DE LA DEVOLUCIÓN]]-Libros[[#This Row],[FECHA DEL PRÉSTAMO]]), \"\")","v":7}]
[{"$f":"IFERROR(((Libros[[#This Row],[FECHA DEL PRÉSTAMO]]+LímiteDías)<TODAY())*(LEN(Libros[[#This Row],[FECHA DE LA DEVOLUCIÓN]])=0)*(LEN(Libros[[#This Row],[FECHA DEL PRÉSTAMO]])>0),0)","v":0},"Gerardo Palacios","alguien@ejemplo.com","555-0101","La telaraña de Carlota",{"$f":"DATE(YEAR(TODAY()),2,15)","v":"2018-02-15"},{"$f":"DATE(YEAR(TODAY()),2,18)","v":"2018-02-18"},{"$f":"IFERROR(IF(Libros[[#This Row],[FECHA DE LA DEVOLUCIÓN]]=\"\",IF(Libros[[#This Row],[FECHA DEL PRÉSTAMO]]<>\"\", TODAY()-Libros[[#This Row],[FECHA DEL PRÉSTAMO]],\"\"),Libros[[#This Row],[FECHA DE LA DEVOLUCIÓN]]-Libros[[#This Row],[FECHA DEL PRÉSTAMO]]), \"\")","v":3}]
[{"$f":"IFERROR(((Libros[[#This Row],[FECHA DEL PRÉSTAMO]]+LímiteDías)<TODAY())*(LEN(Libros[[#This Row],[FECHA DE LA DEVOLUCIÓN]])=0)*(LEN(Libros[[#This Row],[FECHA DEL PRÉSTAMO]])>0),0)","v":0},"Julia Linares","alguien@ejemplo.com","555-0102","La cabina mágica",{"$f":"DATE(YEAR(TODAY()),2,17)","v":"2018-02-17"},{"$f":"DATE(YEAR(TODAY()),2,22)","v":"2018-02-22"},{"$f":"IFERROR(IF(Libros[[#This Row],[FECHA DE LA DEVOLUCIÓN]]=\"\",IF(Libros[[#This Row],[FECHA DEL PRÉSTAMO]]<>\"\", TODAY()-Libros[[#This Row],[FECHA DEL PRÉSTAMO]],\"\"),Libros[[#This Row],[FECHA DE LA DEVOLUCIÓN]]-Libros[[#This Row],[FECHA DEL PRÉSTAMO]]), \"\")","v":5}]
[{"$f":"IFERROR(((Libros[[#This Row],[FECHA DEL PRÉSTAMO]]+LímiteDías)<TODAY())*(LEN(Libros[[#This Row],[FECHA DE LA DEVOLUCIÓN]])=0)*(LEN(Libros[[#This Row],[FECHA DEL PRÉSTAMO]])>0),0)","v":0},"Íker Arteaga","alguien@ejemplo.com","555-0103","La señora Frisby y las ratas de Nimh",{"$f":"DATE(YEAR(TODAY()),2,17)","v":"2018-02-17"},{"$f":"DATE(YEAR(TODAY()),2,25)","v":"2018-02-25"},{"$f":"IFERROR(IF(Libros[[#This Row],[FECHA DE LA DEVOLUCIÓN]]=\"\",IF(Libros[[#This Row],[FECHA DEL PRÉSTAMO]]<>\"\", TODAY()-Libros[[#This Row],[FECHA DEL PRÉSTAMO]],\"\"),Libros[[#This Row],[FECHA DE LA DEVOLUCIÓN]]-Libros[[#This Row],[FECHA DEL PRÉSTAMO]]), \"\")","v":8}]
[{"$f":"IFERROR(((Libros[[#This Row],[FECHA DEL PRÉSTAMO]]+LímiteDías)<TODAY())*(LEN(Libros[[#This Row],[FECHA DE LA DEVOLUCIÓN]])=0)*(LEN(Libros[[#This Row],[FECHA DEL PRÉSTAMO]])>0),0)","v":0},"Larissa Sevilla","alguien@ejemplo.com","555-0104","Matilda",{"$f":"DATE(YEAR(TODAY()),2,18)","v":"2018-02-18"},{"$f":"DATE(YEAR(TODAY()),2,28)","v":"2018-02-28"},{"$f":"IFERROR(IF(Libros[[#This Row],[FECHA DE LA DEVOLUCIÓN]]=\"\",IF(Libros[[#This Row],[FECHA DEL PRÉSTAMO]]<>\"\", TODAY()-Libros[[#This Row],[FECHA DEL PRÉSTAMO]],\"\"),Libros[[#This Row],[FECHA DE LA DEVOLUCIÓN]]-Libros[[#This Row],[FECHA DEL PRÉSTAMO]]), \"\")","v":10}]
[{"$f":"IFERROR(((Libros[[#This Row],[FECHA DEL PRÉSTAMO]]+LímiteDías)<TODAY())*(LEN(Libros[[#This Row],[FECHA DE LA DEVOLUCIÓN]])=0)*(LEN(Libros[[#This Row],[FECHA DEL PRÉSTAMO]])>0),0)","v":1},"Eulalia Terán","alguien@ejemplo.com","555-0105","Las crónicas de Narnia",{"$f":"DATE(YEAR(TODAY()),1,23)","v":"2018-01-23"},null,{"$f":"IFERROR(IF(Libros[[#This Row],[FECHA DE LA DEVOLUCIÓN]]=\"\",IF(Libros[[#This Row],[FECHA DEL PRÉSTAMO]]<>\"\", TODAY()-Libros[[#This Row],[FECHA DEL PRÉSTAMO]],\"\"),Libros[[#This Row],[FECHA DE LA DEVOLUCIÓN]]-Libros[[#This Row],[FECHA DEL PRÉSTAMO]]), \"\")","v":162}]
[{"$f":"IFERROR(((Libros[[#This Row],[FECHA DEL PRÉSTAMO]]+LímiteDías)<TODAY())*(LEN(Libros[[#This Row],[FECHA DE LA DEVOLUCIÓN]])=0)*(LEN(Libros[[#This Row],[FECHA DEL PRÉSTAMO]])>0),0)","v":0},"Isabel Robledo","alguien@ejemplo.com","555-0106","El estanque del mirlo",{"$f":"TODAY()","v":"2018-07-04"},null,{"$f":"IFERROR(IF(Libros[[#This Row],[FECHA DE LA DEVOLUCIÓN]]=\"\",IF(Libros[[#This Row],[FECHA DEL PRÉSTAMO]]<>\"\", TODAY()-Libros[[#This Row],[FECHA DEL PRÉSTAMO]],\"\"),Libros[[#This Row],[FECHA DE LA DEVOLUCIÓN]]-Libros[[#This Row],[FECHA DEL PRÉSTAMO]]), \"\")","v":0}]